[Event "Titled Tuesday Blitz January 04 2022"]
[White "Kravtsiv, Martyn"]
[Black "Drozdowski, Kacper"]
[WhiteFideId "14113147"]
[BlackFideId "1136720"]
[WhiteElo "2694"]
[BlackElo "2507"]
[Result "1-0"]
[Round "06"]
[TimeControl "180+1"]
[Date "2022.01.04"]
[WhiteClock "0:00:26"]
[BlackClock "0:00:14"]

1. e4 {[%clk 0:02:56]}  c5 {[%clk 0:02:59]} 2. Nf3 {[%clk 0:02:55]}  e6 {[%clk 0:03:00]} 3. d4 {[%clk 0:02:55]}  cxd4 {[%clk 0:03:01]} 4. Nxd4 {[%clk 0:02:56]}  Nc6 {[%clk 0:03:01]} 5. Be2 {[%clk 0:02:55]}  Nf6 {[%clk 0:03:01]} 6. Nc3 {[%clk 0:02:55]}  Qc7 {[%clk 0:02:57]} 7. O-O {[%clk 0:02:54]}  a6 {[%clk 0:02:57]} 8. Be3 {[%clk 0:02:53]}  Bb4 {[%clk 0:02:57]} 9. Na4 {[%clk 0:02:52]}  O-O {[%clk 0:02:57]} 10. c4 {[%clk 0:02:48]}  Be7 {[%clk 0:02:57]} 11. Nc3 {[%clk 0:02:45]}  b6 {[%clk 0:02:53]} 12. Rc1 {[%clk 0:02:44]}  Nxd4 {[%clk 0:02:50]} 13. Bxd4 {[%clk 0:02:43]}  Bb7 {[%clk 0:02:49]} 14. e5 {[%clk 0:02:39]}  Ne4 {[%clk 0:02:44]} 15. Bf3 {[%clk 0:02:34]}  Nxc3 {[%clk 0:02:40]} 16. Rxc3 {[%clk 0:02:35]}  Rac8 {[%clk 0:02:31]} 17. a3 {[%clk 0:02:09]}  Rfd8 {[%clk 0:02:26]} 18. Re1 {[%clk 0:02:06]}  d6 {[%clk 0:02:05]} 19. Bxb7 {[%clk 0:02:03]}  Qxb7 {[%clk 0:02:05]} 20. Qg4 {[%clk 0:02:03]}  d5 {[%clk 0:02:00]} 21. cxd5 {[%clk 0:01:58]}  Rxc3 {[%clk 0:01:58]} 22. Bxc3 {[%clk 0:01:55]}  Qxd5 {[%clk 0:01:55]} 23. h3 {[%clk 0:01:55]}  b5 {[%clk 0:01:53]} 24. Qe2 {[%clk 0:01:50]}  h6 {[%clk 0:01:51]} 25. Kh2 {[%clk 0:01:50]}  Bc5 {[%clk 0:01:51]} 26. f4 {[%clk 0:01:47]}  Qd3 {[%clk 0:01:42]} 27. Ba5 {[%clk 0:01:28]}  Qxe2 {[%clk 0:01:36]} 28. Rxe2 {[%clk 0:01:29]}  Rd1 {[%clk 0:01:35]} 29. g3 {[%clk 0:01:28]}  Bd4 {[%clk 0:01:30]} 30. Rc2 {[%clk 0:01:10]}  Rb1 {[%clk 0:01:22]} 31. b4 {[%clk 0:01:02]}  Rb2 {[%clk 0:01:16]} 32. Rxb2 {[%clk 0:01:01]}  Bxb2 {[%clk 0:01:17]} 33. Kg2 {[%clk 0:01:01]}  Bxa3 {[%clk 0:01:17]} 34. Kf3 {[%clk 0:01:02]}  Bb2 {[%clk 0:01:16]} 35. Ke4 {[%clk 0:01:01]}  Kf8 {[%clk 0:01:14]} 36. g4 {[%clk 0:00:58]}  Ke7 {[%clk 0:01:12]} 37. Bb6 {[%clk 0:00:54]}  Bc3 {[%clk 0:01:08]} 38. Bc5+ {[%clk 0:00:53]}  Ke8 {[%clk 0:01:08]} 39. f5 {[%clk 0:00:52]}  a5 {[%clk 0:01:07]} 40. bxa5 {[%clk 0:00:52]}  Bxa5 {[%clk 0:01:08]} 41. h4 {[%clk 0:00:51]}  Bd8 {[%clk 0:00:44]} 42. h5 {[%clk 0:00:43]}  Be7 {[%clk 0:00:44]} 43. Be3 {[%clk 0:00:41]}  Bf8 {[%clk 0:00:39]} 44. Kd4 {[%clk 0:00:39]}  Kd7 {[%clk 0:00:39]} 45. Bd2 {[%clk 0:00:38]}  Kc6 {[%clk 0:00:40]} 46. f6 {[%clk 0:00:36]}  gxf6 {[%clk 0:00:36]} 47. exf6 {[%clk 0:00:35]}  Bc5+ {[%clk 0:00:28]} 48. Ke4 {[%clk 0:00:34]}  Bf8 {[%clk 0:00:28]} 49. Kd4 {[%clk 0:00:34]}  Kd7 {[%clk 0:00:25]} 50. g5 {[%clk 0:00:32]}  hxg5 {[%clk 0:00:25]} 51. Bxg5 {[%clk 0:00:33]}  b4 {[%clk 0:00:22]} 52. h6 {[%clk 0:00:31]}  Bxh6 {[%clk 0:00:22]} 53. Bxh6 {[%clk 0:00:31]}  e5+ {[%clk 0:00:18]} 54. Kxe5 {[%clk 0:00:30]}  b3 {[%clk 0:00:19]} 55. Bc1 {[%clk 0:00:30]}  Kc6 {[%clk 0:00:19]} 56. Ba3 {[%clk 0:00:30]}  Kb5 {[%clk 0:00:18]} 57. Kd6 {[%clk 0:00:30]}  Kc4 {[%clk 0:00:13]} 58. Ke7 {[%clk 0:00:29]}  Kc3 {[%clk 0:00:13]} 59. Kxf7 {[%clk 0:00:28]}  Kc2 {[%clk 0:00:14]} 60. Ke6 {[%clk 0:00:27]}  Kb1 {[%clk 0:00:14]} 61. f7 {[%clk 0:00:26]} 1-0


[Site "https://www.chess.com"]

[Event "Titled Tuesday Blitz January 04 2022"]
[White "Maksimovic, Bojan"]
[Black "Krishnan, Varun"]
[WhiteFideId "14408120"]
[BlackFideId "5054508"]
[WhiteElo "2450"]
[BlackElo "2547"]
[Result "1-0"]
[Round "06"]
[TimeControl "180+1"]
[Date "2022.01.04"]
[WhiteClock "0:00:09"]
[BlackClock "0:00:01"]

1. d4 {[%clk 0:03:00]}  d5 {[%clk 0:02:59]} 2. c4 {[%clk 0:03:00]}  e6 {[%clk 0:02:59]} 3. Nf3 {[%clk 0:03:00]}  Nf6 {[%clk 0:02:59]} 4. g3 {[%clk 0:03:00]}  Bb4+ {[%clk 0:02:59]} 5. Bd2 {[%clk 0:02:59]}  Be7 {[%clk 0:02:57]} 6. Qc2 {[%clk 0:02:59]}  O-O {[%clk 0:02:56]} 7. Bg2 {[%clk 0:02:59]}  b6 {[%clk 0:02:55]} 8. O-O {[%clk 0:02:57]}  Bb7 {[%clk 0:02:55]} 9. cxd5 {[%clk 0:02:54]}  exd5 {[%clk 0:02:54]} 10. Nc3 {[%clk 0:02:52]}  Nbd7 {[%clk 0:02:43]} 11. Bf4 {[%clk 0:02:48]}  c5 {[%clk 0:02:40]} 12. Rad1 {[%clk 0:02:43]}  Rc8 {[%clk 0:02:18]} 13. Qb1 {[%clk 0:02:43]}  c4 {[%clk 0:02:13]} 14. Ne5 {[%clk 0:02:39]}  Re8 {[%clk 0:02:01]} 15. Bh3 {[%clk 0:02:13]}  Ra8 {[%clk 0:01:44]} 16. Nb5 {[%clk 0:01:46]}  a6 {[%clk 0:01:21]} 17. Nc7 {[%clk 0:01:14]}  Qxc7 {[%clk 0:01:19]} 18. Nxd7 {[%clk 0:01:14]}  Qd8 {[%clk 0:01:15]} 19. Ne5 {[%clk 0:01:11]}  b5 {[%clk 0:00:58]} 20. Rfe1 {[%clk 0:01:02]}  b4 {[%clk 0:00:57]} 21. f3 {[%clk 0:00:59]}  a5 {[%clk 0:00:54]} 22. b3 {[%clk 0:00:43]}  c3 {[%clk 0:00:49]} 23. Nd3 {[%clk 0:00:40]}  Bd6 {[%clk 0:00:44]} 24. Bxd6 {[%clk 0:00:31]}  Qxd6 {[%clk 0:00:44]} 25. Nc5 {[%clk 0:00:31]}  Bc8 {[%clk 0:00:40]} 26. Bg2 {[%clk 0:00:19]}  Nd7 {[%clk 0:00:35]} 27. Nd3 {[%clk 0:00:19]}  Qb6 {[%clk 0:00:26]} 28. e3 {[%clk 0:00:17]}  Ba6 {[%clk 0:00:24]} 29. Qc2 {[%clk 0:00:17]}  a4 {[%clk 0:00:19]} 30. Rb1 {[%clk 0:00:10]}  Bxd3 {[%clk 0:00:17]} 31. Qxd3 {[%clk 0:00:10]}  axb3 {[%clk 0:00:17]} 32. axb3 {[%clk 0:00:10]}  Ra2 {[%clk 0:00:17]} 33. Bh3 {[%clk 0:00:09]}  Nf6 {[%clk 0:00:15]} 34. Ra1 {[%clk 0:00:09]}  Rd2 {[%clk 0:00:15]} 35. Qf5 {[%clk 0:00:08]}  h6 {[%clk 0:00:15]} 36. Bf1 {[%clk 0:00:07]}  Qe6 {[%clk 0:00:12]} 37. Qf4 {[%clk 0:00:07]}  Qe7 {[%clk 0:00:11]} 38. Ra6 {[%clk 0:00:06]}  Qb7 {[%clk 0:00:11]} 39. Rxf6 {[%clk 0:00:06]}  gxf6 {[%clk 0:00:10]} 40. Qxh6 {[%clk 0:00:06]}  Qe7 {[%clk 0:00:10]} 41. e4 {[%clk 0:00:05]}  Qa7 {[%clk 0:00:07]} 42. Qxf6 {[%clk 0:00:02]}  Qxd4+ {[%clk 0:00:05]} 43. Qxd4 {[%clk 0:00:02]}  Rxd4 {[%clk 0:00:06]} 44. e5 {[%clk 0:00:01]}  c2 {[%clk 0:00:06]} 45. Rc1 {[%clk 0:00:01]}  Rc8 {[%clk 0:00:06]} 46. Be2 {[%clk 0:00:01]}  Rd2 {[%clk 0:00:06]} 47. Kf2 {[%clk 0:00:01]}  Rxe2+ {[%clk 0:00:04]} 48. Kxe2 {[%clk 0:00:02]}  Kf8 {[%clk 0:00:05]} 49. Kd2 {[%clk 0:00:02]}  Rc3 {[%clk 0:00:05]} 50. f4 {[%clk 0:00:02]}  Rxb3 {[%clk 0:00:05]} 51. Rxc2 {[%clk 0:00:03]}  Rf3 {[%clk 0:00:05]} 52. Rc7 {[%clk 0:00:03]}  Rf2+ {[%clk 0:00:05]} 53. Kd3 {[%clk 0:00:03]}  Rxh2 {[%clk 0:00:05]} 54. Rb7 {[%clk 0:00:04]}  Rg2 {[%clk 0:00:06]} 55. Kd4 {[%clk 0:00:03]}  Rxg3 {[%clk 0:00:06]} 56. f5 {[%clk 0:00:04]}  b3 {[%clk 0:00:05]} 57. Kxd5 {[%clk 0:00:04]}  Rd3+ {[%clk 0:00:05]} 58. Ke4 {[%clk 0:00:04]}  Rc3 {[%clk 0:00:05]} 59. f6 {[%clk 0:00:04]}  Ke8 {[%clk 0:00:04]} 60. Rb8+ {[%clk 0:00:05]}  Kd7 {[%clk 0:00:04]} 61. Rb7+ {[%clk 0:00:05]}  Rc7 {[%clk 0:00:04]} 62. Rxb3 {[%clk 0:00:05]}  Rc1 {[%clk 0:00:04]} 63. Rb7+ {[%clk 0:00:04]}  Ke8 {[%clk 0:00:04]} 64. Rb8+ {[%clk 0:00:04]}  Kd7 {[%clk 0:00:04]} 65. Rb7+ {[%clk 0:00:04]}  Ke8 {[%clk 0:00:04]} 66. Re7+ {[%clk 0:00:05]}  Kf8 {[%clk 0:00:05]} 67. Ra7 {[%clk 0:00:05]}  Re1+ {[%clk 0:00:05]} 68. Kf5 {[%clk 0:00:03]}  Rf1+ {[%clk 0:00:05]} 69. Ke4 {[%clk 0:00:04]}  Re1+ {[%clk 0:00:05]} 70. Kd4 {[%clk 0:00:04]}  Rd1+ {[%clk 0:00:06]} 71. Kc4 {[%clk 0:00:04]}  Rc1+ {[%clk 0:00:06]} 72. Kd3 {[%clk 0:00:05]}  Rd1+ {[%clk 0:00:06]} 73. Kc3 {[%clk 0:00:04]}  Rc1+ {[%clk 0:00:06]} 74. Kd2 {[%clk 0:00:04]}  Rc8 {[%clk 0:00:06]} 75. Kd3 {[%clk 0:00:04]}  Rb8 {[%clk 0:00:06]} 76. Ke4 {[%clk 0:00:04]}  Rc8 {[%clk 0:00:05]} 77. Kd5 {[%clk 0:00:04]}  Rb8 {[%clk 0:00:05]} 78. Kd6 {[%clk 0:00:05]}  Rd8+ {[%clk 0:00:05]} 79. Rd7 {[%clk 0:00:04]}  Ra8 {[%clk 0:00:05]} 80. Rc7 {[%clk 0:00:02]}  Rd8+ {[%clk 0:00:05]} 81. Kc6 {[%clk 0:00:02]}  Re8 {[%clk 0:00:04]} 82. Kd5 {[%clk 0:00:01]}  Rd8+ {[%clk 0:00:04]} 83. Ke4 {[%clk 0:00:02]}  Ra8 {[%clk 0:00:05]} 84. Rc4 {[%clk 0:00:02]}  Rb8 {[%clk 0:00:04]} 85. Ra4 {[%clk 0:00:02]}  Rc8 {[%clk 0:00:04]} 86. Kd4 {[%clk 0:00:03]}  Rd8+ {[%clk 0:00:04]} 87. Kc5 {[%clk 0:00:03]}  Rc8+ {[%clk 0:00:05]} 88. Kd5 {[%clk 0:00:03]}  Rd8+ {[%clk 0:00:05]} 89. Kc6 {[%clk 0:00:04]}  Rc8+ {[%clk 0:00:05]} 90. Kd7 {[%clk 0:00:05]}  Re8 {[%clk 0:00:04]} 91. Ra5 {[%clk 0:00:05]}  Rb8 {[%clk 0:00:04]} 92. Rc5 {[%clk 0:00:05]}  Rb7+ {[%clk 0:00:03]} 93. Rc7 {[%clk 0:00:05]}  Rb8 {[%clk 0:00:01]} 94. Rc8+ {[%clk 0:00:06]}  Rxc8 {[%clk 0:00:01]} 95. Kxc8 {[%clk 0:00:07]}  Kg8 {[%clk 0:00:02]} 96. Kd7 {[%clk 0:00:07]}  Kh7 {[%clk 0:00:02]} 97. Ke7 {[%clk 0:00:07]}  Kg6 {[%clk 0:00:02]} 98. e6 {[%clk 0:00:08]}  fxe6 {[%clk 0:00:02]} 99. f7 {[%clk 0:00:08]}  e5 {[%clk 0:00:02]} 100. f8=Q {[%clk 0:00:09]}  e4 {[%clk 0:00:01]} 101. Qf2 {[%clk 0:00:09]}  e3 {[%clk 0:00:01]} 102. Qxe3 {[%clk 0:00:09]} 1-0


[Site "https://www.chess.com"]

[Event "Titled Tuesday Blitz January 04 2022"]
[White "Maly, Alexey"]
[Black "Zverev, Lev"]
[WhiteFideId "14103184"]
[BlackFideId "24250775"]
[WhiteElo "2266"]
[BlackElo "2156"]
[Result "1-0"]
[Round "06"]
[TimeControl "180+1"]
[Date "2022.01.04"]
[WhiteClock "0:01:05"]
[BlackClock "0:01:09"]

1. d4 {[%clk 0:03:00]}  Nf6 {[%clk 0:02:57]} 2. c4 {[%clk 0:03:00]}  e6 {[%clk 0:02:57]} 3. Nf3 {[%clk 0:03:00]}  d5 {[%clk 0:02:56]} 4. e3 {[%clk 0:03:00]}  Be7 {[%clk 0:02:54]} 5. Nbd2 {[%clk 0:03:01]}  O-O {[%clk 0:02:54]} 6. Bd3 {[%clk 0:03:01]}  dxc4 {[%clk 0:02:52]} 7. Nxc4 {[%clk 0:03:01]}  b5 {[%clk 0:02:51]} 8. Nce5 {[%clk 0:03:00]}  a6 {[%clk 0:02:51]} 9. O-O {[%clk 0:03:00]}  Bb7 {[%clk 0:02:50]} 10. a4 {[%clk 0:03:01]}  b4 {[%clk 0:02:50]} 11. b3 {[%clk 0:03:01]}  Nbd7 {[%clk 0:02:50]} 12. Bb2 {[%clk 0:03:01]}  c5 {[%clk 0:02:47]} 13. Nxd7 {[%clk 0:03:00]}  Qxd7 {[%clk 0:02:44]} 14. Rc1 {[%clk 0:02:59]}  Rad8 {[%clk 0:02:43]} 15. Qe2 {[%clk 0:02:58]}  cxd4 {[%clk 0:02:32]} 16. Bxd4 {[%clk 0:02:55]}  Bxf3 {[%clk 0:02:31]} 17. Qxf3 {[%clk 0:02:51]}  e5 {[%clk 0:02:25]} 18. Bf5 {[%clk 0:02:50]}  Qd5 {[%clk 0:02:26]} 19. Bb6 {[%clk 0:02:38]}  e4 {[%clk 0:02:25]} 20. Qh3 {[%clk 0:02:33]}  Rb8 {[%clk 0:02:20]} 21. Bd4 {[%clk 0:02:23]}  g6 {[%clk 0:02:20]} 22. Bc8 {[%clk 0:02:00]}  Qxb3 {[%clk 0:02:13]} 23. Bxa6 {[%clk 0:01:58]}  Qxa4 {[%clk 0:02:11]} 24. Bc4 {[%clk 0:01:56]}  Qd7 {[%clk 0:02:06]} 25. Qg3 {[%clk 0:01:49]}  Rfc8 {[%clk 0:01:55]} 26. Bb3 {[%clk 0:01:36]}  Rxc1 {[%clk 0:01:50]} 27. Rxc1 {[%clk 0:01:37]}  Rc8 {[%clk 0:01:50]} 28. Rxc8+ {[%clk 0:01:35]}  Qxc8 {[%clk 0:01:51]} 29. h3 {[%clk 0:01:32]}  Qc1+ {[%clk 0:01:40]} 30. Kh2 {[%clk 0:01:31]}  Qc6 {[%clk 0:01:41]} 31. Qb8+ {[%clk 0:01:25]}  Kg7 {[%clk 0:01:38]} 32. g3 {[%clk 0:01:18]}  h5 {[%clk 0:01:28]} 33. Qe5 {[%clk 0:01:09]}  Qd6 {[%clk 0:01:19]} 34. Qxe4 {[%clk 0:01:07]}  Kg8 {[%clk 0:01:09]} 35. Qxg6+ {[%clk 0:01:05]} 1-0


[Site "https://www.chess.com"]

[Event "Titled Tuesday Blitz January 04 2022"]
[White "Nesterov, Arseniy"]
[Black "Kosteniuk, Alexandra"]
[WhiteFideId "24198455"]
[BlackFideId "4128125"]
[WhiteElo "2489"]
[BlackElo "2469"]
[Result "1-0"]
[Round "06"]
[TimeControl "180+1"]
[Date "2022.01.04"]
[WhiteClock "0:00:09"]
[BlackClock "0:01:07"]

1. d4 {[%clk 0:03:00]}  Nf6 {[%clk 0:03:00]} 2. c4 {[%clk 0:03:00]}  e6 {[%clk 0:03:00]} 3. Nc3 {[%clk 0:03:00]}  Bb4 {[%clk 0:03:00]} 4. Qc2 {[%clk 0:03:00]}  c5 {[%clk 0:02:57]} 5. dxc5 {[%clk 0:03:00]}  O-O {[%clk 0:02:57]} 6. Nf3 {[%clk 0:02:59]}  Na6 {[%clk 0:02:56]} 7. g3 {[%clk 0:02:58]}  Nxc5 {[%clk 0:02:56]} 8. Bg2 {[%clk 0:02:58]}  Nce4 {[%clk 0:02:55]} 9. O-O {[%clk 0:02:58]}  Bxc3 {[%clk 0:02:55]} 10. bxc3 {[%clk 0:02:58]}  Qc7 {[%clk 0:02:56]} 11. Nd4 {[%clk 0:02:56]}  d5 {[%clk 0:02:54]} 12. cxd5 {[%clk 0:02:54]}  exd5 {[%clk 0:02:55]} 13. Ba3 {[%clk 0:02:35]}  Rd8 {[%clk 0:02:40]} 14. Rac1 {[%clk 0:02:32]}  Bd7 {[%clk 0:02:38]} 15. c4 {[%clk 0:02:01]}  Qxc4 {[%clk 0:02:33]} 16. Qb2 {[%clk 0:01:25]}  Qa6 {[%clk 0:02:23]} 17. Rc7 {[%clk 0:01:25]}  Qb6 {[%clk 0:02:08]} 18. Rxb7 {[%clk 0:01:00]}  Qxb2 {[%clk 0:02:03]} 19. Rxb2 {[%clk 0:01:01]}  Rab8 {[%clk 0:01:56]} 20. Rfb1 {[%clk 0:00:49]}  Rxb2 {[%clk 0:01:49]} 21. Rxb2 {[%clk 0:00:50]}  Rc8 {[%clk 0:01:44]} 22. Rb7 {[%clk 0:00:30]}  a6 {[%clk 0:01:40]} 23. h3 {[%clk 0:00:20]}  h5 {[%clk 0:01:36]} 24. Bb2 {[%clk 0:00:14]}  Nd6 {[%clk 0:01:31]} 25. Ra7 {[%clk 0:00:11]}  Nc4 {[%clk 0:01:25]} 26. Ba1 {[%clk 0:00:11]}  Rb8 {[%clk 0:01:23]} 27. Nb3 {[%clk 0:00:11]}  Ne4 {[%clk 0:01:08]} 28. Rxd7 {[%clk 0:00:09]}  a5 {[%clk 0:01:07]} 29. Rxd5 {[%clk 0:00:08]}  a4 {[%clk 0:01:07]} 30. Bxe4 {[%clk 0:00:08]}  axb3 {[%clk 0:01:07]} 31. axb3 {[%clk 0:00:09]} 1-0


[Site "https://www.chess.com"]

[Event "Titled Tuesday Blitz January 04 2022"]
[White "Pranav, V"]
[Black "Piesik, Piotr"]
[WhiteFideId "25060783"]
[BlackFideId "1136194"]
[WhiteElo "2349"]
[BlackElo "2232"]
[Result "1-0"]
[Round "06"]
[TimeControl "180+1"]
[Date "2022.01.04"]
[WhiteClock "0:01:36"]
[BlackClock "0:01:06"]

1. e4 {[%clk 0:03:00]}  c6 {[%clk 0:03:00]} 2. d4 {[%clk 0:03:00]}  d5 {[%clk 0:03:00]} 3. e5 {[%clk 0:03:01]}  Bf5 {[%clk 0:03:00]} 4. Nf3 {[%clk 0:02:58]}  e6 {[%clk 0:02:57]} 5. Be2 {[%clk 0:02:59]}  Nd7 {[%clk 0:02:56]} 6. c3 {[%clk 0:02:58]}  Bg6 {[%clk 0:02:41]} 7. O-O {[%clk 0:02:57]}  Nh6 {[%clk 0:02:34]} 8. Re1 {[%clk 0:02:55]}  Nf5 {[%clk 0:02:32]} 9. Nbd2 {[%clk 0:02:55]}  a6 {[%clk 0:02:07]} 10. Nf1 {[%clk 0:02:54]}  c5 {[%clk 0:02:03]} 11. Ng3 {[%clk 0:02:52]}  cxd4 {[%clk 0:01:58]} 12. Nxf5 {[%clk 0:02:51]}  Bxf5 {[%clk 0:01:58]} 13. Nxd4 {[%clk 0:02:50]}  Bg6 {[%clk 0:01:58]} 14. Bd3 {[%clk 0:02:47]}  Bxd3 {[%clk 0:01:57]} 15. Qxd3 {[%clk 0:02:45]}  Be7 {[%clk 0:01:57]} 16. Qg3 {[%clk 0:02:43]}  g6 {[%clk 0:01:52]} 17. Bh6 {[%clk 0:02:40]}  Qb6 {[%clk 0:01:50]} 18. b3 {[%clk 0:02:29]}  O-O-O {[%clk 0:01:49]} 19. Qf3 {[%clk 0:02:23]}  Bc5 {[%clk 0:01:47]} 20. Rad1 {[%clk 0:02:18]}  Bxd4 {[%clk 0:01:45]} 21. cxd4 {[%clk 0:02:17]}  Nb8 {[%clk 0:01:34]} 22. Qxf7 {[%clk 0:02:08]}  Rd7 {[%clk 0:01:35]} 23. Qf6 {[%clk 0:02:06]}  Re8 {[%clk 0:01:33]} 24. h3 {[%clk 0:01:47]}  Nc6 {[%clk 0:01:33]} 25. Qh4 {[%clk 0:01:47]}  Rf7 {[%clk 0:01:28]} 26. Be3 {[%clk 0:01:44]}  Kb8 {[%clk 0:01:27]} 27. Rc1 {[%clk 0:01:42]}  Rc8 {[%clk 0:01:26]} 28. Rc5 {[%clk 0:01:41]}  Nb4 {[%clk 0:01:19]} 29. Rec1 {[%clk 0:01:37]}  Rxc5 {[%clk 0:01:17]} 30. dxc5 {[%clk 0:01:38]}  Qb5 {[%clk 0:01:13]} 31. a4 {[%clk 0:01:37]}  Qd3 {[%clk 0:01:06]} 32. Qxb4 {[%clk 0:01:36]} 1-0


[Site "https://www.chess.com"]

[Event "Titled Tuesday Blitz January 04 2022"]
[White "Punin, Andrii"]
[Black "Terry, Renato"]
[WhiteFideId "14112639"]
[BlackFideId "3803457"]
[WhiteElo "2357"]
[BlackElo "2577"]
[Result "1-0"]
[Round "06"]
[TimeControl "180+1"]
[Date "2022.01.04"]
[WhiteClock "0:00:10"]
[BlackClock "0:00:02"]

1. e4 {[%clk 0:03:00]}  e6 {[%clk 0:02:59]} 2. Be2 {[%clk 0:02:59]}  c5 {[%clk 0:02:59]} 3. f4 {[%clk 0:02:58]}  Nc6 {[%clk 0:02:59]} 4. Nf3 {[%clk 0:02:58]}  d5 {[%clk 0:03:00]} 5. d3 {[%clk 0:02:59]}  Nf6 {[%clk 0:02:57]} 6. e5 {[%clk 0:02:55]}  Ng4 {[%clk 0:02:57]} 7. c3 {[%clk 0:02:54]}  h5 {[%clk 0:02:57]} 8. Na3 {[%clk 0:02:52]}  Nh6 {[%clk 0:02:55]} 9. Be3 {[%clk 0:02:49]}  Nf5 {[%clk 0:02:53]} 10. Bf2 {[%clk 0:02:49]}  a6 {[%clk 0:02:49]} 11. O-O {[%clk 0:02:47]}  b5 {[%clk 0:02:49]} 12. Nc2 {[%clk 0:02:45]}  d4 {[%clk 0:02:47]} 13. Nd2 {[%clk 0:02:44]}  dxc3 {[%clk 0:02:43]} 14. bxc3 {[%clk 0:02:43]}  Bb7 {[%clk 0:02:43]} 15. Ne4 {[%clk 0:02:41]}  c4 {[%clk 0:02:32]} 16. dxc4 {[%clk 0:02:31]}  Nxe5 {[%clk 0:02:32]} 17. fxe5 {[%clk 0:02:09]}  Bxe4 {[%clk 0:02:31]} 18. Nd4 {[%clk 0:02:09]}  Qc7 {[%clk 0:00:54]} 19. cxb5 {[%clk 0:02:01]}  Qxe5 {[%clk 0:00:53]} 20. Nxf5 {[%clk 0:01:56]}  exf5 {[%clk 0:00:43]} 21. bxa6 {[%clk 0:01:55]}  Bd6 {[%clk 0:00:42]} 22. Qa4+ {[%clk 0:01:46]}  Ke7 {[%clk 0:00:37]} 23. Bg3 {[%clk 0:01:43]}  Qc5+ {[%clk 0:00:27]} 24. Bf2 {[%clk 0:01:26]}  Qc7 {[%clk 0:00:25]} 25. Bh4+ {[%clk 0:01:24]}  f6 {[%clk 0:00:25]} 26. Bf3 {[%clk 0:01:15]}  Qb6+ {[%clk 0:00:15]} 27. Bf2 {[%clk 0:01:10]}  Qxa6 {[%clk 0:00:15]} 28. Qxa6 {[%clk 0:01:04]}  Rxa6 {[%clk 0:00:16]} 29. Rfe1 {[%clk 0:01:02]}  Ra4 {[%clk 0:00:17]} 30. Bd4 {[%clk 0:01:01]}  Rha8 {[%clk 0:00:13]} 31. Bxe4 {[%clk 0:01:00]}  fxe4 {[%clk 0:00:14]} 32. Rxe4+ {[%clk 0:01:00]}  Kf7 {[%clk 0:00:15]} 33. Re2 {[%clk 0:00:58]}  h4 {[%clk 0:00:13]} 34. h3 {[%clk 0:00:56]}  Rb8 {[%clk 0:00:13]} 35. Kf2 {[%clk 0:00:54]}  Rb7 {[%clk 0:00:13]} 36. Kf3 {[%clk 0:00:54]}  Kg6 {[%clk 0:00:08]} 37. Rd1 {[%clk 0:00:43]}  Rb5 {[%clk 0:00:08]} 38. Ke3 {[%clk 0:00:35]}  Rg5 {[%clk 0:00:07]} 39. Rf1 {[%clk 0:00:33]}  Rga5 {[%clk 0:00:07]} 40. Kd3 {[%clk 0:00:26]}  Rxa2 {[%clk 0:00:06]} 41. Rxa2 {[%clk 0:00:26]}  Rxa2 {[%clk 0:00:06]} 42. Rf2 {[%clk 0:00:26]}  Ra5 {[%clk 0:00:06]} 43. Ke4 {[%clk 0:00:24]}  Bg3 {[%clk 0:00:06]} 44. Rc2 {[%clk 0:00:23]}  Kf7 {[%clk 0:00:05]} 45. c4 {[%clk 0:00:22]}  Ra4 {[%clk 0:00:05]} 46. Be3 {[%clk 0:00:19]}  Ra8 {[%clk 0:00:04]} 47. Bf4 {[%clk 0:00:16]}  Re8+ {[%clk 0:00:05]} 48. Kf3 {[%clk 0:00:16]}  Bxf4 {[%clk 0:00:06]} 49. Kxf4 {[%clk 0:00:16]}  g5+ {[%clk 0:00:07]} 50. Kf3 {[%clk 0:00:14]}  Re5 {[%clk 0:00:07]} 51. c5 {[%clk 0:00:11]}  Ke7 {[%clk 0:00:07]} 52. c6 {[%clk 0:00:11]}  Kd8 {[%clk 0:00:07]} 53. c7+ {[%clk 0:00:11]}  Kc8 {[%clk 0:00:08]} 54. Rc6 {[%clk 0:00:11]}  Rf5+ {[%clk 0:00:07]} 55. Ke2 {[%clk 0:00:11]}  Rf4 {[%clk 0:00:07]} 56. Ke3 {[%clk 0:00:11]}  Rf5 {[%clk 0:00:07]} 57. Ke2 {[%clk 0:00:11]}  Rf4 {[%clk 0:00:05]} 58. Ke3 {[%clk 0:00:12]}  Rf1 {[%clk 0:00:06]} 59. Ke2 {[%clk 0:00:12]}  Rf5 {[%clk 0:00:04]} 60. Ke3 {[%clk 0:00:12]}  Rf4 {[%clk 0:00:02]} 61. Ke2 {[%clk 0:00:12]}  f5 {[%clk 0:00:01]} 62. Rg6 {[%clk 0:00:11]}  g4 {[%clk 0:00:02]} 63. hxg4 {[%clk 0:00:11]}  fxg4 {[%clk 0:00:02]} 64. Rh6 {[%clk 0:00:03]}  g3 {[%clk 0:00:03]} 65. Ke3 {[%clk 0:00:03]}  Ra4 {[%clk 0:00:02]} 66. Rh7 {[%clk 0:00:02]}  Rb4 {[%clk 0:00:02]} 67. Kf3 {[%clk 0:00:02]}  Rc4 {[%clk 0:00:03]} 68. Ke3 {[%clk 0:00:03]}  Rc6 {[%clk 0:00:03]} 69. Kf3 {[%clk 0:00:02]}  Rc4 {[%clk 0:00:03]} 70. Ke3 {[%clk 0:00:02]}  Ra4 {[%clk 0:00:04]} 71. Kf3 {[%clk 0:00:03]}  Rb4 {[%clk 0:00:04]} 72. Ke3 {[%clk 0:00:03]}  Kb7 {[%clk 0:00:05]} 73. Kf3 {[%clk 0:00:03]}  Rc4 {[%clk 0:00:05]} 74. Ke3 {[%clk 0:00:03]}  Ra4 {[%clk 0:00:04]} 75. Kf3 {[%clk 0:00:03]}  Ra3+ {[%clk 0:00:04]} 76. Kg4 {[%clk 0:00:03]}  Ra4+ {[%clk 0:00:04]} 77. Kh3 {[%clk 0:00:03]}  Kc8 {[%clk 0:00:04]} 78. Rxh4 {[%clk 0:00:03]}  Ra1 {[%clk 0:00:04]} 79. Rh7 {[%clk 0:00:04]}  Ra3 {[%clk 0:00:04]} 80. Rg7 {[%clk 0:00:04]}  Rb3 {[%clk 0:00:02]} 81. Rxg3 {[%clk 0:00:04]}  Rb6 {[%clk 0:00:02]} 82. Rg7 {[%clk 0:00:04]}  Rh6+ {[%clk 0:00:02]} 83. Kg4 {[%clk 0:00:05]}  Rh2 {[%clk 0:00:02]} 84. g3 {[%clk 0:00:05]}  Kb7 {[%clk 0:00:02]} 85. Kf4 {[%clk 0:00:05]}  Rf2+ {[%clk 0:00:03]} 86. Kg5 {[%clk 0:00:06]}  Re2 {[%clk 0:00:02]} 87. g4 {[%clk 0:00:06]}  Kc8 {[%clk 0:00:03]} 88. Kh5 {[%clk 0:00:06]}  Rh2+ {[%clk 0:00:03]} 89. Kg6 {[%clk 0:00:06]}  Rg2 {[%clk 0:00:03]} 90. g5 {[%clk 0:00:07]}  Rg1 {[%clk 0:00:03]} 91. Rf7 {[%clk 0:00:07]}  Rg2 {[%clk 0:00:02]} 92. Kh6 {[%clk 0:00:08]}  Rh2+ {[%clk 0:00:02]} 93. Kg7 {[%clk 0:00:08]}  Rg2 {[%clk 0:00:03]} 94. g6 {[%clk 0:00:09]}  Rg1 {[%clk 0:00:03]} 95. Kh7 {[%clk 0:00:09]}  Rh1+ {[%clk 0:00:03]} 96. Kg8 {[%clk 0:00:09]}  Rg1 {[%clk 0:00:02]} 97. g7 {[%clk 0:00:10]}  Rg2 {[%clk 0:00:02]} 98. Kf8 {[%clk 0:00:10]}  Rg1 {[%clk 0:00:02]} 99. g8=Q {[%clk 0:00:10]} 1-0


[Site "https://www.chess.com"]